[Event "Late-Titled-Tuesday-Blitz-February-27-2024"]
[Site "Chess.com"]
[Date "2024.02.27"]
[Round "1"]
[White "VitorBronson"]
[Black "platy3"]
[Result "0-1"]
[WhiteElo "2499"]
[BlackElo "2932"]
[TimeControl "180+1"]
[EndTime "14:09:03 PST"]
[Termination "platy3 won by checkmate"]

1. d4 {[%clk 0:03:00.9]} 1... Nf6 {[%clk 0:02:55.9]} 2. c4 {[%clk 0:02:30.1]}
2... e6 {[%clk 0:02:54.9]} 3. Nf3 {[%clk 0:02:27.8]} 3... d5 {[%clk 0:02:55.8]}
4. Nc3 {[%clk 0:02:27.4]} 4... dxc4 {[%clk 0:02:55.1]} 5. e4 {[%clk 0:02:26.8]}
5... b5 {[%clk 0:02:55.4]} 6. e5 {[%clk 0:02:25.2]} 6... Nd5 {[%clk 0:02:55.8]}
7. Nxb5 {[%clk 0:02:23.5]} 7... Nb6 {[%clk 0:02:56.4]} 8. Be2 {[%clk 0:02:22]}
8... Nc6 {[%clk 0:02:56.5]} 9. O-O {[%clk 0:02:20.7]} 9... Be7 {[%clk
0:02:56.6]} 10. Be3 {[%clk 0:02:19.7]} 10... O-O {[%clk 0:02:54.4]} 11. Qc1
{[%clk 0:02:19.4]} 11... Rb8 {[%clk 0:02:54.7]} 12. Nc3 {[%clk 0:02:11.4]} 12...
Nb4 {[%clk 0:02:54.4]} 13. a3 {[%clk 0:02:10.8]} 13... Nd3 {[%clk 0:02:53.4]}
14. Bxd3 {[%clk 0:02:10.9]} 14... cxd3 {[%clk 0:02:54.3]} 15. Rd1 {[%clk
0:02:10.9]} 15... Ba6 {[%clk 0:02:54.1]} 16. Ne1 {[%clk 0:02:08.1]} 16... d2
{[%clk 0:02:04.4]} 17. Rxd2 {[%clk 0:02:00.5]} 17... Nc4 {[%clk 0:02:04.6]} 18.
Rc2 {[%clk 0:02:00.6]} 18... Na5 {[%clk 0:01:56.5]} 19. Qd1 {[%clk 0:01:45.1]}
19... Bc4 {[%clk 0:01:56.8]} 20. b4 {[%clk 0:01:41]} 20... Nc6 {[%clk
0:01:50.9]} 21. Rb1 {[%clk 0:01:35.6]} 21... Qd7 {[%clk 0:01:48.6]} 22. Ne4
{[%clk 0:01:33.4]} 22... Bd5 {[%clk 0:01:48.3]} 23. Nc5 {[%clk 0:01:30.5]} 23...
Qc8 {[%clk 0:01:47]} 24. Rbc1 {[%clk 0:01:23.3]} 24... Rd8 {[%clk 0:01:46.5]}
25. Rc3 {[%clk 0:01:20.3]} 25... a5 {[%clk 0:01:46.2]} 26. bxa5 {[%clk
0:01:19.2]} 26... Nxa5 {[%clk 0:01:46.5]} 27. Ned3 {[%clk 0:01:15.6]} 27... Rb6
{[%clk 0:01:38.4]} 28. Nb4 {[%clk 0:01:14.8]} 28... Ba8 {[%clk 0:01:36.3]} 29.
Qa4 {[%clk 0:01:08.8]} 29... Nc6 {[%clk 0:01:33.6]} 30. Nca6 {[%clk 0:01:02.3]}
30... Nxb4 {[%clk 0:01:25.5]} 31. Nxb4 {[%clk 0:01:03.2]} 31... Bxb4 {[%clk
0:00:46.5]} 32. Rxc7 {[%clk 0:00:55.3]} 32... Qb8 {[%clk 0:00:38.4]} 33. axb4
{[%clk 0:00:55.5]} 33... Rxb4 {[%clk 0:00:39.3]} 34. Qa5 {[%clk 0:00:46.2]}
34... Rb1 {[%clk 0:00:34]} 35. h3 {[%clk 0:00:41.5]} 35... Bd5 {[%clk
0:00:31.6]} 36. Rxb1 {[%clk 0:00:28.9]} 36... Qxb1+ {[%clk 0:00:32.5]} 37. Rc1
{[%clk 0:00:28.5]} 37... Qb8 {[%clk 0:00:31.8]} 38. Qc7 {[%clk 0:00:27.4]} 38...
Qa8 {[%clk 0:00:31.5]} 39. Bg5 {[%clk 0:00:23]} 39... Re8 {[%clk 0:00:31]} 40.
f3 {[%clk 0:00:20.3]} 40... h6 {[%clk 0:00:29.7]} 41. Be7 {[%clk 0:00:15.1]}
41... Qa6 {[%clk 0:00:22]} 42. Qd7 {[%clk 0:00:09.7]} 42... Ra8 {[%clk
0:00:16.4]} 43. Bh4 {[%clk 0:00:08.4]} 43... Qd3 {[%clk 0:00:14]} 44. Bf2 {[%clk
0:00:07.4]} 44... Qd2 {[%clk 0:00:11.8]} 45. Rc8+ {[%clk 0:00:07.4]} 45... Rxc8
{[%clk 0:00:11.6]} 46. Qxc8+ {[%clk 0:00:08.3]} 46... Kh7 {[%clk 0:00:12.5]} 47.
Qb8 {[%clk 0:00:05.4]} 47... Qc1+ {[%clk 0:00:12]} 48. Kh2 {[%clk 0:00:05.9]}
48... Qf4+ {[%clk 0:00:12.7]} 49. Kg1 {[%clk 0:00:05.6]} 49... Qc1+ {[%clk
0:00:13]} 50. Kh2 {[%clk 0:00:06.2]} 50... Qc2 {[%clk 0:00:13.7]} 51. Kg1 {[%clk
0:00:05]} 51... Qd1+ {[%clk 0:00:14.1]} 52. Kh2 {[%clk 0:00:05.4]} 52... Qd2
{[%clk 0:00:14.8]} 53. Kg1 {[%clk 0:00:05.7]} 53... Kg6 {[%clk 0:00:15.2]} 54.
Qb1+ {[%clk 0:00:04.3]} 54... f5 {[%clk 0:00:08.8]} 55. Qe1 {[%clk 0:00:05.2]}
55... Qc2 {[%clk 0:00:07.8]} 56. Qe3 {[%clk 0:00:05]} 56... Kh7 {[%clk
0:00:08.1]} 57. Qe1 {[%clk 0:00:04.5]} 57... Kg6 {[%clk 0:00:07.7]} 58. h4
{[%clk 0:00:05]} 58... Kh5 {[%clk 0:00:07.6]} 59. Qe3 {[%clk 0:00:04.5]} 59...
g5 {[%clk 0:00:08]} 60. hxg5 {[%clk 0:00:04.5]} 60... hxg5 {[%clk 0:00:08.9]}
61. Be1 {[%clk 0:00:04.5]} 61... f4 {[%clk 0:00:07.8]} 62. Qf2 {[%clk
0:00:04.5]} 62... Qd1 {[%clk 0:00:08.2]} 63. Kh2 {[%clk 0:00:04.1]} 63... Kg6
{[%clk 0:00:08.7]} 64. g3 {[%clk 0:00:03.6]} 64... Bxf3 {[%clk 0:00:08.6]} 65.
gxf4 {[%clk 0:00:03.3]} 65... gxf4 {[%clk 0:00:09.5]} 66. Qh4 {[%clk 0:00:03.3]}
66... Qe2+ {[%clk 0:00:09.1]} 67. Qf2 {[%clk 0:00:03.8]} 67... Qe4 {[%clk
0:00:09.5]} 68. Qg1+ {[%clk 0:00:03.7]} 68... Kf7 {[%clk 0:00:09.4]} 69. Qf2
{[%clk 0:00:03.7]} 69... Qh7+ {[%clk 0:00:09.7]} 70. Qh4 {[%clk 0:00:04]} 70...
Qc2+ {[%clk 0:00:10]} 71. Qf2 {[%clk 0:00:01.7]} 71... Qe4 {[%clk 0:00:10.3]}
72. Qh4 {[%clk 0:00:02.6]} 72... Ke8 {[%clk 0:00:09.1]} 73. Qf2 {[%clk
0:00:03.5]} 73... Kd7 {[%clk 0:00:09.3]} 74. Qh4 {[%clk 0:00:04.4]} 74... Kc6
{[%clk 0:00:09.8]} 75. Qf2 {[%clk 0:00:05.3]} 75... Kd5 {[%clk 0:00:10.2]} 76.
Kg1 {[%clk 0:00:05.8]} 76... Qg6+ {[%clk 0:00:10]} 77. Kh2 {[%clk 0:00:06.7]}
77... Qh5+ {[%clk 0:00:09.7]} 78. Qh4 {[%clk 0:00:07.1]} 78... Qg6 {[%clk
0:00:08.8]} 79. Qf2 {[%clk 0:00:08]} 79... Be4 {[%clk 0:00:08.2]} 80. Qg1 {[%clk
0:00:06.5]} 80... Qh5+ {[%clk 0:00:07.6]} 81. Bh4 {[%clk 0:00:03.8]} 81... Qxh4#
{[%clk 0:00:08.5]} 0-1

[Event "Late-Titled-Tuesday-Blitz-February-27-2024"]
[Site "Chess.com"]
[Date "2024.02.27"]
[Round "1"]
[White "KamilGrycel"]
[Black "Zhigalko_Sergei"]
[Result "0-1"]
[WhiteElo "2480"]
[BlackElo "2893"]
[TimeControl "180+1"]
[EndTime "14:09:09 PST"]
[Termination "Zhigalko_Sergei won by resignation"]

1. d4 {[%clk 0:03:00.9]} 1... Nf6 {[%clk 0:03:00.2]} 2. Nf3 {[%clk 0:03:00.8]}
2... e6 {[%clk 0:03:01.1]} 3. Bf4 {[%clk 0:03:01.2]} 3... b6 {[%clk 0:03:00.8]}
4. e3 {[%clk 0:03:01.6]} 4... Bb7 {[%clk 0:03:01.4]} 5. h3 {[%clk 0:03:02.2]}
5... Bd6 {[%clk 0:03:01.2]} 6. Bxd6 {[%clk 0:03:02.4]} 6... cxd6 {[%clk
0:03:02.1]} 7. c4 {[%clk 0:03:02.8]} 7... O-O {[%clk 0:03:02.7]} 8. Nc3 {[%clk
0:03:03]} 8... Qe7 {[%clk 0:03:02.7]} 9. Be2 {[%clk 0:03:01.9]} 9... d5 {[%clk
0:03:01.4]} 10. O-O {[%clk 0:03:01.8]} 10... dxc4 {[%clk 0:03:01.6]} 11. Bxc4
{[%clk 0:03:02.7]} 11... Rc8 {[%clk 0:02:58.1]} 12. Be2 {[%clk 0:03:01.6]} 12...
d6 {[%clk 0:02:56.1]} 13. Rc1 {[%clk 0:03:00.8]} 13... Nbd7 {[%clk 0:02:56.6]}
14. Qb3 {[%clk 0:02:56.9]} 14... a6 {[%clk 0:02:56.2]} 15. a4 {[%clk 0:02:50]}
15... e5 {[%clk 0:02:43.3]} 16. Rfd1 {[%clk 0:02:44.4]} 16... g6 {[%clk
0:02:38.5]} 17. Qa3 {[%clk 0:02:34.1]} 17... Kf8 {[%clk 0:02:29.1]} 18. Qb3
{[%clk 0:01:54.4]} 18... Rc7 {[%clk 0:02:20.9]} 19. a5 {[%clk 0:01:37.7]} 19...
b5 {[%clk 0:02:17.8]} 20. Na2 {[%clk 0:01:10]} 20... Rac8 {[%clk 0:02:07.4]} 21.
Rxc7 {[%clk 0:01:09.5]} 21... Rxc7 {[%clk 0:02:08.3]} 22. Nb4 {[%clk 0:01:09.8]}
22... Kg7 {[%clk 0:01:54.1]} 23. Qa3 {[%clk 0:00:55.7]} 23... Kf8 {[%clk
0:01:47.6]} 24. Qb3 {[%clk 0:00:55.4]} 24... Nb8 {[%clk 0:01:35.6]} 25. Qa3
{[%clk 0:00:54.5]} 25... h6 {[%clk 0:01:31.4]} 26. Qb3 {[%clk 0:00:53.9]} 26...
Nc6 {[%clk 0:01:28.5]} 27. Nxc6 {[%clk 0:00:53.1]} 27... Bxc6 {[%clk 0:01:29.4]}
28. dxe5 {[%clk 0:00:49.3]} 28... dxe5 {[%clk 0:01:29.4]} 29. Rc1 {[%clk
0:00:36]} 29... Bxf3 {[%clk 0:01:16.7]} 30. Rxc7 {[%clk 0:00:35.5]} 30... Qxc7
{[%clk 0:01:17.6]} 31. Qb4+ {[%clk 0:00:34.8]} 31... Qe7 {[%clk 0:01:07.2]} 32.
Qxe7+ {[%clk 0:00:34.3]} 32... Kxe7 {[%clk 0:01:08.1]} 33. Bxf3 {[%clk
0:00:34.4]} 33... e4 {[%clk 0:01:08.7]} 34. Bd1 {[%clk 0:00:34.4]} 34... Kd6
{[%clk 0:01:02.8]} 35. Bb3 {[%clk 0:00:34.1]} 35... Nd5 {[%clk 0:01:03.2]} 36.
Kf1 {[%clk 0:00:34]} 36... f5 {[%clk 0:00:57.2]} 37. Ke2 {[%clk 0:00:33.8]}
37... Kc5 {[%clk 0:00:52.2]} 38. Kd2 {[%clk 0:00:28.5]} 38... Ne7 {[%clk
0:00:45.5]} 39. Bf7 {[%clk 0:00:27.3]} 39... Kb4 {[%clk 0:00:43]} 40. f3 {[%clk
0:00:22.4]} 40... exf3 {[%clk 0:00:34.9]} 41. gxf3 {[%clk 0:00:23.3]} 41... Kxa5
{[%clk 0:00:35.8]} 42. Kc3 {[%clk 0:00:23]} 42... Kb6 {[%clk 0:00:24]} 43. Kd4
{[%clk 0:00:23.2]} 43... a5 {[%clk 0:00:16.2]} 44. Ke5 {[%clk 0:00:23.2]} 44...
Kc7 {[%clk 0:00:13.3]} 45. Kf6 {[%clk 0:00:23]} 45... Kd8 {[%clk 0:00:04.7]} 46.
e4 {[%clk 0:00:22.1]} 46... fxe4 {[%clk 0:00:04.2]} 47. fxe4 {[%clk 0:00:23]}
47... a4 {[%clk 0:00:04.3]} 48. Ke6 {[%clk 0:00:14.1]} 48... b4 {[%clk
0:00:02.7]} 49. Kd6 {[%clk 0:00:13.9]} 49... a3 {[%clk 0:00:02]} 50. bxa3 {[%clk
0:00:13.5]} 50... bxa3 {[%clk 0:00:02.9]} 51. Kc5 {[%clk 0:00:13.4]} 51... g5
{[%clk 0:00:03]} 52. Kb4 {[%clk 0:00:13.3]} 52... Nc6+ {[%clk 0:00:02.3]} 53.
Kxa3 {[%clk 0:00:13]} 53... Ke7 {[%clk 0:00:03.2]} 54. Bh5 {[%clk 0:00:12.8]}
54... Kd6 {[%clk 0:00:03.1]} 55. Ka4 {[%clk 0:00:10.4]} 55... Nd4 {[%clk
0:00:02.4]} 56. Kb4 {[%clk 0:00:09.3]} 56... Ke5 {[%clk 0:00:02.9]} 57. Bg6
{[%clk 0:00:08.5]} 57... Ne6 {[%clk 0:00:02.6]} 58. Kc3 {[%clk 0:00:08.5]} 58...
Nc5 {[%clk 0:00:02.3]} 59. Kd2 {[%clk 0:00:05.4]} 59... Kf4 {[%clk 0:00:02.7]}
60. Ke2 {[%clk 0:00:04.1]} 60... Nxe4 {[%clk 0:00:02.7]} 61. Kf1 {[%clk
0:00:02.2]} 61... Nf6 {[%clk 0:00:01.6]} 62. Kg2 {[%clk 0:00:02.3]} 62... Nd5
{[%clk 0:00:02]} 63. Be8 {[%clk 0:00:02.4]} 63... Ke5 {[%clk 0:00:02.1]} 64. Bd7
{[%clk 0:00:02.6]} 64... Kf4 {[%clk 0:00:02.2]} 65. Bc8 {[%clk 0:00:03.1]} 65...
Ne3+ {[%clk 0:00:03.1]} 66. Kh2 {[%clk 0:00:02.9]} 66... Nf5 {[%clk 0:00:04]}
67. Bd7 {[%clk 0:00:03.3]} 67... Nh4 {[%clk 0:00:04.2]} 68. Bc8 {[%clk 0:00:04]}
68... Nf3+ {[%clk 0:00:04.1]} 69. Kh1 {[%clk 0:00:04]} 69... Kg3 {[%clk
0:00:04]} 70. Bd7 {[%clk 0:00:04]} 70... Ne1 {[%clk 0:00:04.1]} 71. Bc8 {[%clk
0:00:04.9]} 71... Nd3 {[%clk 0:00:04.3]} 72. Bd7 {[%clk 0:00:05.4]} 72... Nf4
{[%clk 0:00:04.3]} 73. Bc8 {[%clk 0:00:06.3]} 73... Nxh3 {[%clk 0:00:04.4]} 74.
Bb7 {[%clk 0:00:06.6]} 74... Nf4 {[%clk 0:00:04.7]} 75. Ba8 {[%clk 0:00:07.5]}
75... h5 {[%clk 0:00:04.9]} 76. Bb7 {[%clk 0:00:08.4]} 76... h4 {[%clk
0:00:05.4]} 77. Ba8 {[%clk 0:00:09.3]} 77... h3 {[%clk 0:00:05.8]} 78. Bb7
{[%clk 0:00:10.2]} 78... g4 {[%clk 0:00:06]} 79. Ba8 {[%clk 0:00:11.1]} 79...
Kf2 {[%clk 0:00:05.3]} 80. Bc6 {[%clk 0:00:10.1]} 80... g3 {[%clk 0:00:05.5]}
81. Bb7 {[%clk 0:00:08.3]} 81... g2+ {[%clk 0:00:05.7]} 0-1

[Event "Late-Titled-Tuesday-Blitz-February-27-2024"]
[Site "Chess.com"]
[Date "2024.02.27"]
[Round "2"]
[White "Orion2127989"]
[Black "dolynachess"]
[Result "0-1"]
[WhiteElo "2150"]
[BlackElo "2459"]
[TimeControl "180+1"]
[EndTime "14:13:05 PST"]
[Termination "dolynachess won by resignation"]

1. d4 {[%clk 0:03:00]} 1... Nf6 {[%clk 0:02:57]} 2. Nf3 {[%clk 0:02:59.7]} 2...
g6 {[%clk 0:02:56.6]} 3. Bg5 {[%clk 0:02:59.3]} 3... Bg7 {[%clk 0:02:54.4]} 4.
Nbd2 {[%clk 0:02:59.5]} 4... c5 {[%clk 0:02:52.7]} 5. e3 {[%clk 0:02:59.4]} 5...
O-O {[%clk 0:02:51.4]} 6. c3 {[%clk 0:02:59]} 6... d5 {[%clk 0:02:39.7]} 7. Bd3
{[%clk 0:02:59.1]} 7... Nc6 {[%clk 0:02:40]} 8. O-O {[%clk 0:02:58.8]} 8... Qb6
{[%clk 0:02:34.8]} 9. Rb1 {[%clk 0:02:57.8]} 9... Re8 {[%clk 0:02:24.1]} 10. Re1
{[%clk 0:02:30.8]} 10... Nd7 {[%clk 0:02:22.2]} 11. Bf4 {[%clk 0:02:23.5]} 11...
e5 {[%clk 0:02:19.8]} 12. dxe5 {[%clk 0:02:23.2]} 12... Ndxe5 {[%clk 0:02:20.7]}
13. Nxe5 {[%clk 0:02:22.3]} 13... Nxe5 {[%clk 0:02:21.6]} 14. Be2 {[%clk
0:02:19.3]} 14... Bf5 {[%clk 0:02:20.8]} 15. Ra1 {[%clk 0:02:06.2]} 15... Qxb2
{[%clk 0:02:19.5]} 16. Qb3 {[%clk 0:01:56]} 16... Qxd2 {[%clk 0:02:01]} 0-1

[Event "Late-Titled-Tuesday-Blitz-February-27-2024"]
[Site "Chess.com"]
[Date "2024.02.27"]
[Round "2"]
[White "1977Ivan"]
[Black "Nick12772"]
[Result "1-0"]
[WhiteElo "2736"]
[BlackElo "2390"]
[TimeControl "180+1"]
[EndTime "14:13:29 PST"]
[Termination "1977Ivan won by resignation"]

1. d4 {[%clk 0:03:00.9]} 1... Nf6 {[%clk 0:03:00]} 2. Nf3 {[%clk 0:03:01.8]}
2... g6 {[%clk 0:03:00.3]} 3. Nbd2 {[%clk 0:03:01.1]} 3... d5 {[%clk 0:03:00.1]}
4. e3 {[%clk 0:02:59.8]} 4... Bg7 {[%clk 0:03:00.5]} 5. b4 {[%clk 0:02:59.7]}
5... O-O {[%clk 0:03:00.4]} 6. c4 {[%clk 0:02:58.8]} 6... c6 {[%clk 0:02:57]} 7.
Be2 {[%clk 0:02:54.6]} 7... Bg4 {[%clk 0:02:56.7]} 8. O-O {[%clk 0:02:52.8]}
8... Nbd7 {[%clk 0:02:56]} 9. a4 {[%clk 0:02:39.7]} 9... a6 {[%clk 0:02:56]} 10.
Ba3 {[%clk 0:02:38.3]} 10... Re8 {[%clk 0:02:55.7]} 11. b5 {[%clk 0:02:24.3]}
11... axb5 {[%clk 0:02:55.7]} 12. axb5 {[%clk 0:02:23.8]} 12... dxc4 {[%clk
0:02:49]} 13. Bxc4 {[%clk 0:02:05.5]} 13... Nb6 {[%clk 0:02:23]} 14. Bxf7+
{[%clk 0:02:02.7]} 14... Kxf7 {[%clk 0:02:19.2]} 15. Ne5+ {[%clk 0:02:03.3]}
15... Kg8 {[%clk 0:02:15.3]} 16. Nxg4 {[%clk 0:02:03.7]} 16... Nxg4 {[%clk
0:02:12.4]} 17. Qxg4 {[%clk 0:02:04.6]} 17... cxb5 {[%clk 0:02:07.9]} 18. Qe6+
{[%clk 0:01:58.3]} 18... Kh8 {[%clk 0:02:07.1]} 19. Nf3 {[%clk 0:01:58.8]} 19...
Nc4 {[%clk 0:01:54.9]} 20. Ng5 {[%clk 0:01:57.2]} 20... Rf8 {[%clk 0:01:54.1]}
21. Bxe7 {[%clk 0:01:56]} 21... Rxa1 {[%clk 0:01:52.9]} 22. Rxa1 {[%clk
0:01:52.3]} 1-0

[Event "Late-Titled-Tuesday-Blitz-February-27-2024"]
[Site "Chess.com"]
[Date "2024.02.27"]
[Round "2"]
[White "elchacal664"]
[Black "jk13"]
[Result "0-1"]
[WhiteElo "2422"]
[BlackElo "2697"]
[TimeControl "180+1"]
[EndTime "14:13:37 PST"]
[Termination "jk13 won by resignation"]

1. Nf3 {[%clk 0:02:44.1]} 1... Nf6 {[%clk 0:02:59.7]} 2. g3 {[%clk 0:02:43.4]}
2... e6 {[%clk 0:03:00.1]} 3. b3 {[%clk 0:02:42.5]} 3... d5 {[%clk 0:03:01]} 4.
Bb2 {[%clk 0:02:41.9]} 4... a5 {[%clk 0:03:01.8]} 5. Bg2 {[%clk 0:02:42.4]} 5...
a4 {[%clk 0:03:02]} 6. O-O {[%clk 0:02:42.6]} 6... a3 {[%clk 0:03:00.8]} 7. Bc1
{[%clk 0:02:36.1]} 7... Be7 {[%clk 0:03:01]} 8. d3 {[%clk 0:02:32.9]} 8... O-O
{[%clk 0:03:00.6]} 9. c4 {[%clk 0:02:32.3]} 9... b6 {[%clk 0:02:53.8]} 10. Qc2
{[%clk 0:02:26.9]} 10... Bb7 {[%clk 0:02:52.8]} 11. Bf4 {[%clk 0:02:19.4]} 11...
Nc6 {[%clk 0:02:44.2]} 12. Nbd2 {[%clk 0:02:06.3]} 12... Nb4 {[%clk 0:02:43.5]}
13. Qc3 {[%clk 0:01:58.7]} 13... c5 {[%clk 0:02:41.7]} 14. h3 {[%clk 0:01:55.1]}
14... Nd7 {[%clk 0:02:36.3]} 15. e4 {[%clk 0:01:46.4]} 15... d4 {[%clk
0:02:33.9]} 16. Qc1 {[%clk 0:01:45.5]} 16... Nxd3 {[%clk 0:02:34.1]} 17. Qc2
{[%clk 0:01:39.1]} 17... Nxf4 {[%clk 0:02:28.2]} 18. gxf4 {[%clk 0:01:38.8]}
18... Qc7 {[%clk 0:02:27.3]} 19. e5 {[%clk 0:01:33.8]} 19... f6 {[%clk
0:02:27.6]} 20. exf6 {[%clk 0:01:23.8]} 20... Bxf6 {[%clk 0:02:18.1]} 21. Ne4
{[%clk 0:01:23.5]} 21... Qxf4 {[%clk 0:02:15.3]} 0-1

[Event "Late-Titled-Tuesday-Blitz-February-27-2024"]
[Site "Chess.com"]
[Date "2024.02.27"]
[Round "2"]
[White "ATM622"]
[Black "DeTimmerman"]
[Result "0-1"]
[WhiteElo "2527"]
[BlackElo "2746"]
[TimeControl "180+1"]
[EndTime "14:13:41 PST"]
[Termination "DeTimmerman won by resignation"]

1. d4 {[%clk 0:03:00.9]} 1... Nf6 {[%clk 0:02:59.5]} 2. c4 {[%clk 0:03:00.7]}
2... e6 {[%clk 0:02:59.7]} 3. g3 {[%clk 0:03:00.9]} 3... d5 {[%clk 0:02:59.7]}
4. Bg2 {[%clk 0:03:01.2]} 4... Be7 {[%clk 0:03:00.2]} 5. Nf3 {[%clk 0:03:01.6]}
5... O-O {[%clk 0:03:00.5]} 6. O-O {[%clk 0:03:02.1]} 6... dxc4 {[%clk
0:03:01.1]} 7. Ne5 {[%clk 0:03:02.2]} 7... Nc6 {[%clk 0:03:00.7]} 8. Bxc6 {[%clk
0:03:01.5]} 8... bxc6 {[%clk 0:03:01.6]} 9. Nxc6 {[%clk 0:03:02.1]} 9... Qe8
{[%clk 0:02:46.2]} 10. Nxe7+ {[%clk 0:03:02]} 10... Qxe7 {[%clk 0:02:47.1]} 11.
Qc2 {[%clk 0:03:02.6]} 11... a5 {[%clk 0:02:47.5]} 12. b3 {[%clk 0:02:51.5]}
12... cxb3 {[%clk 0:02:45.6]} 13. axb3 {[%clk 0:02:51.9]} 13... Nd5 {[%clk
0:02:45.5]} 14. Ba3 {[%clk 0:02:48.2]} 14... Nb4 {[%clk 0:02:44.5]} 15. Bxb4
{[%clk 0:02:48.2]} 15... Qxb4 {[%clk 0:02:44.6]} 16. Qxc7 {[%clk 0:02:44.2]}
16... Ba6 {[%clk 0:02:21.2]} 17. Qxa5 {[%clk 0:02:27.8]} 17... Qxd4 {[%clk
0:02:20.6]} 18. Qc3 {[%clk 0:02:18]} 18... Qd5 {[%clk 0:02:15.3]} 19. Qe3 {[%clk
0:02:03.3]} 19... Bb7 {[%clk 0:02:06]} 0-1

[Event "Late-Titled-Tuesday-Blitz-February-27-2024"]
[Site "Chess.com"]
[Date "2024.02.27"]
[Round "2"]
[White "Ar4uha"]
[Black "Sargsyan_Shant"]
[Result "0-1"]
[WhiteElo "2588"]
[BlackElo "2910"]
[TimeControl "180+1"]
[EndTime "14:13:58 PST"]
[Termination "Sargsyan_Shant won by resignation"]

1. e4 {[%clk 0:03:00.9]} 1... c6 {[%clk 0:02:59.2]} 2. d4 {[%clk 0:03:00.9]}
2... d5 {[%clk 0:02:59.6]} 3. exd5 {[%clk 0:03:01.8]} 3... cxd5 {[%clk
0:02:59.9]} 4. Bd3 {[%clk 0:03:02.5]} 4... Nf6 {[%clk 0:03:00.3]} 5. h3 {[%clk
0:03:01.7]} 5... Nc6 {[%clk 0:03:00.6]} 6. c3 {[%clk 0:03:01.6]} 6... e5 {[%clk
0:03:00]} 7. dxe5 {[%clk 0:03:01.6]} 7... Nxe5 {[%clk 0:03:00.9]} 8. Nf3 {[%clk
0:03:02.3]} 8... Nxd3+ {[%clk 0:03:00.4]} 9. Qxd3 {[%clk 0:03:03.2]} 9... Bd6
{[%clk 0:03:00.7]} 10. O-O {[%clk 0:03:02.6]} 10... O-O {[%clk 0:03:01.2]} 11.
Be3 {[%clk 0:03:00]} 11... Ne4 {[%clk 0:02:56.5]} 12. Nd4 {[%clk 0:02:58.4]}
12... Re8 {[%clk 0:02:55.2]} 13. Nd2 {[%clk 0:02:58.4]} 13... a6 {[%clk
0:02:53.3]} 14. Rfe1 {[%clk 0:02:56.8]} 14... h6 {[%clk 0:02:50.2]} 15. Rad1
{[%clk 0:02:56.2]} 15... Bd7 {[%clk 0:02:42.2]} 16. N4b3 {[%clk 0:02:31.2]}
16... Nf6 {[%clk 0:02:30.1]} 17. Bd4 {[%clk 0:02:25.6]} 17... Rxe1+ {[%clk
0:02:30]} 18. Rxe1 {[%clk 0:02:25.7]} 18... Bc6 {[%clk 0:02:30.9]} 19. Qf5
{[%clk 0:02:13.4]} 19... Ne4 {[%clk 0:02:22.2]} 20. Nxe4 {[%clk 0:02:03.2]}
20... dxe4 {[%clk 0:02:22.2]} 21. Nc5 {[%clk 0:02:03.6]} 21... g6 {[%clk
0:02:06.6]} 22. Qg4 {[%clk 0:02:01]} 22... h5 {[%clk 0:02:05.5]} 0-1

[Event "Late-Titled-Tuesday-Blitz-February-27-2024"]
[Site "Chess.com"]
[Date "2024.02.27"]
[Round "2"]
[White "Fonsofan"]
[Black "Practical-Play"]
[Result "1-0"]
[WhiteElo "2753"]
[BlackElo "2529"]
[TimeControl "180+1"]
[EndTime "14:14:06 PST"]
[Termination "Fonsofan won by resignation"]

1. b4 {[%clk 0:02:56.7]} 1... e5 {[%clk 0:02:58.3]} 2. Bb2 {[%clk 0:02:57.1]}
2... Bxb4 {[%clk 0:02:56.9]} 3. Bxe5 {[%clk 0:02:57.8]} 3... Nf6 {[%clk
0:02:57.3]} 4. Nf3 {[%clk 0:02:57.2]} 4... Nc6 {[%clk 0:02:57.2]} 5. Bc3 {[%clk
0:02:56.7]} 5... Be7 {[%clk 0:02:45.6]} 6. e3 {[%clk 0:02:56.3]} 6... O-O {[%clk
0:02:44.8]} 7. Be2 {[%clk 0:02:56.4]} 7... d5 {[%clk 0:02:43]} 8. d3 {[%clk
0:02:56.5]} 8... Bd6 {[%clk 0:02:38]} 9. Nbd2 {[%clk 0:02:55.2]} 9... Re8 {[%clk
0:02:35.8]} 10. Qb1 {[%clk 0:02:55.7]} 10... Ne5 {[%clk 0:02:20.9]} 11. Nxe5
{[%clk 0:02:54.2]} 11... Bxe5 {[%clk 0:02:19.8]} 12. Bxe5 {[%clk 0:02:54.3]}
12... Rxe5 {[%clk 0:02:20.6]} 13. c4 {[%clk 0:02:49.1]} 13... b6 {[%clk
0:01:57.2]} 14. d4 {[%clk 0:02:42.8]} 14... Re8 {[%clk 0:01:48.1]} 15. O-O
{[%clk 0:02:42.8]} 15... dxc4 {[%clk 0:01:46.2]} 16. Bf3 {[%clk 0:02:41.1]}
16... Rb8 {[%clk 0:01:40]} 17. Nxc4 {[%clk 0:02:41.5]} 17... Bb7 {[%clk
0:01:36.3]} 18. Bxb7 {[%clk 0:02:37.4]} 18... Rxb7 {[%clk 0:01:37.2]} 19. Rc1
{[%clk 0:02:34.4]} 19... Qd5 {[%clk 0:01:36]} 20. a4 {[%clk 0:02:33.1]} 20... c5
{[%clk 0:01:30.6]} 21. Qb5 {[%clk 0:02:13]} 21... cxd4 {[%clk 0:01:26.1]} 22.
Qxd5 {[%clk 0:02:13.9]} 22... Nxd5 {[%clk 0:01:25.9]} 23. Nd6 {[%clk 0:02:14.5]}
23... Rbe7 {[%clk 0:01:18.5]} 24. Nxe8 {[%clk 0:02:14.7]} 24... Rxe8 {[%clk
0:01:19.4]} 25. Rd1 {[%clk 0:01:59.9]} 25... dxe3 {[%clk 0:01:17.5]} 26. Rxd5
{[%clk 0:01:58.8]} 26... e2 {[%clk 0:01:17.7]} 27. Re1 {[%clk 0:01:59]} 1-0

[Event "Late-Titled-Tuesday-Blitz-February-27-2024"]
[Site "Chess.com"]
[Date "2024.02.27"]
[Round "2"]
[White "Alex_Sahakyan2006"]
[Black "CheckBits"]
[Result "1-0"]
[WhiteElo "2805"]
[BlackElo "2393"]
[TimeControl "180+1"]
[EndTime "14:14:12 PST"]
[Termination "Alex_Sahakyan2006 won by resignation"]

1. e4 {[%clk 0:03:00.9]} 1... e5 {[%clk 0:02:59.7]} 2. Nf3 {[%clk 0:03:00.2]}
2... Nc6 {[%clk 0:02:59.8]} 3. Nc3 {[%clk 0:02:57.4]} 3... Nf6 {[%clk
0:02:58.5]} 4. d4 {[%clk 0:02:58.1]} 4... exd4 {[%clk 0:02:57.4]} 5. Nxd4 {[%clk
0:02:59]} 5... Bb4 {[%clk 0:02:57]} 6. Nxc6 {[%clk 0:02:59.6]} 6... bxc6 {[%clk
0:02:57]} 7. Bd3 {[%clk 0:03:00.4]} 7... O-O {[%clk 0:02:55.3]} 8. O-O {[%clk
0:02:58.9]} 8... d5 {[%clk 0:02:50.2]} 9. exd5 {[%clk 0:02:58.7]} 9... cxd5
{[%clk 0:02:50]} 10. h3 {[%clk 0:02:58.7]} 10... h6 {[%clk 0:02:44.8]} 11. Qf3
{[%clk 0:02:55.1]} 11... c6 {[%clk 0:02:44.1]} 12. Bf4 {[%clk 0:02:38.7]} 12...
Bd6 {[%clk 0:02:41.6]} 13. Ne2 {[%clk 0:02:31.9]} 13... Rb8 {[%clk 0:02:39.9]}
14. b3 {[%clk 0:02:31.4]} 14... Re8 {[%clk 0:02:37.1]} 15. Rad1 {[%clk
0:02:22.7]} 15... Bxf4 {[%clk 0:02:25.3]} 16. Qxf4 {[%clk 0:02:13]} 16... Qb6
{[%clk 0:02:12.5]} 17. Nd4 {[%clk 0:02:02.7]} 17... a5 {[%clk 0:02:10.3]} 18.
Nxc6 {[%clk 0:01:58.5]} 18... Qxc6 {[%clk 0:02:06.4]} 19. Qxb8 {[%clk 0:01:58]}
19... Bg4 {[%clk 0:01:51.9]} 20. Qb5 {[%clk 0:01:54.1]} 20... Qxb5 {[%clk
0:01:48.1]} 21. Bxb5 {[%clk 0:01:55]} 21... Bxd1 {[%clk 0:01:48.1]} 22. Bxe8
{[%clk 0:01:54.8]} 22... Bxc2 {[%clk 0:01:45.2]} 23. Rc1 {[%clk 0:01:49.6]}
23... Bf5 {[%clk 0:01:34.9]} 24. Bb5 {[%clk 0:01:44.5]} 24... d4 {[%clk
0:01:30.9]} 25. Rd1 {[%clk 0:01:42.1]} 1-0